[Event "Commonwealth CC-Open 2024"]
[Site "Malacca"]
[Date "2024.02.21"]
[Round "3.5"]
[White "Lalit Babu M R"]
[Black "Pon, Matt"]
[Result "1-0"]
[ECO "E73"]
[WhiteElo "2525"]
[BlackElo "2202"]
[Annotator "TA"]
[PlyCount "81"]
[EventDate "2024.02.21"]
[EventCountry "MAS"]
[SourceTitle "playchess.com"]
[Source "ChessBase"]
[SourceQuality "1"]
[TimeControl "5400+30"]

{[%evp 10,81,45,49,40,27,35,20,28,33,44,37,44,40,66,55,62,56,100,102,87,87,100,59,59,68,52,43,107,113,145,157,154,146,151,157,215,184,187,197,204,192,205,204,283,281,305,313,326,328,337,338,366,368,381,378,381,400,439,437,656,646,635,564,643,654,672,677,819,814,940,935,1377,1351]} 1. d4 {[%emt 0:04:42]} Nf6 {[%emt 0:00:09]} 2. c4 {[%emt 0:00:04]} g6 {[%emt 0:00:16]} 3. Nc3 {[%emt 0:00:06]} Bg7 {[%emt 0:00:09]} 4. e4 {[%emt 0:00:11]} d6 {[%emt 0:00:11]} 5. Be2 {[%emt 0:00:11]} O-O {[%emt 0:00:47]} 6. Be3 {[%emt 0:00:03]} Na6 {[%emt 0:02:06]} 7. h4 {[%emt 0:03:22]} h5 {[%emt 0:02:19]} 8. f3 {[%emt 0:00:52]} c5 {[%emt 0:01:01] The position is equal.} 9. d5 {[%emt 0:00:18]} e6 {[%emt 0:00:18]} 10. dxe6 {[%emt 0:03:54]} Bxe6 {[%emt 0:00:07]} 11. Nh3 {[%emt 0:01:12]} Re8 {[%emt 0:04:06]} 12. Qd2 {[%emt 0:10:37]} Nb4 {[%emt 0:10:03]} 13. Rd1 {[%emt 0:15:45]} Nd7 {[%emt 0:05:18][%cal Bf6d7,Bd7e5,Be5d3][%mdl 32]} 14. Ng5 {[%emt 0:08:55]} (14. Qxd6 Nc2+ (14... Qxh4+ 15. Nf2 $11) 15. Kf2 Nxe3 (15... Qxh4+ 16. g3 $15) 16. Kxe3 Qa5 $19 (16... Qxh4 17. Qf4 $17)) 14... Ne5 {[%emt 0:07:13]} 15. Nxe6 {[%emt 0:00:53]} ({Inferior is} 15. Qxd6 Qxd6 16. Rxd6 Nxc4 (16... Bxc4 17. b3 $11) 17. Nxe6 Bxc3+ (17... Nxd6 18. Nxg7 Red8 19. Bxc5 $16) 18. bxc3 Nc2+ (18... Nxd6 19. Nc7 $14) 19. Kf2 N2xe3 $15 (19... Nxd6 20. Nc7 $14)) 15... Rxe6 {[%emt 0:09:40]} 16. Bxc5 {[%emt 0:01:32]} Ned3+ {[%emt 0:02:37]} 17. Bxd3 {[%emt 0:01:30]} dxc5 {[%emt 0:00:06]} 18. Bb1 {[%emt 0:04:45]} Qb8 {[%emt 0:06:08] Black is on the road to losing.} (18... Bd4 $14) 19. f4 $16 {[%emt 0:03:57]} Nc6 {[%emt 0:02:18]} 20. O-O {[%emt 0:01:10][%cal Be1g1,Bg1h1,Bh1h2,Bh2g3,Bg3g4][%mdl 32]} Bd4+ {[%emt 0:13:00]} 21. Kh1 {[%emt 0:02:46]} Qd8 {[%emt 0:02:18]} 22. Qe1 {[%emt 0:01:15]} Re8 {[%emt 0:05:32]} (22... Rd6 $16) 23. Qg3 {[%emt 0:02:59]} Qc8 {[%emt 0:05:51]} 24. Nd5 {[%emt 0:02:47] [#] aiming for e5.} Qg4 {[%emt 0:00:58]} 25. Qxg4 {[%emt 0:09:27]} hxg4 {[%emt 0:00:05]} 26. Kh2 {[%emt 0:02:58]} Bxb2 {[%emt 0:03:00]} 27. Nc7 {[%emt 0:00:34][%csl LRa8,LRe8]} Bd4 {[%emt 0:00:12]} 28. Kg3 {[%emt 0:00:43]} Rac8 {[%emt 0:00:57]} 29. Nxe8 {[%emt 0:00:06]} Rxe8 {[%emt 0:00:03]} 30. Kxg4 {[%emt 0:00:16]} Kg7 {[%emt 0:00:24]} 31. Rh1 {[%emt 0:01:20]} ({Don't do} 31. e5 Rh8 32. Be4 Ne7 $18) 31... a6 {[%emt 0:00:40]} 32. a4 {[%emt 0:00:32]} Na5 {[%emt 0:01:14]} 33. Bd3 {[%emt 0:00:22]} Rd8 {[%emt 0:00:20]} 34. h5 {[%emt 0:00:27] White is clearly winning.} Bc3 {[%emt 0:01:35]} (34... gxh5+ $142 35. Rxh5 Kf6 36. e5+ Ke7) 35. hxg6 $18 {[%emt 0:00:29]} fxg6 {[%emt 0:00:06]} 36. Be2 {[%emt 0:00:24]} Bd4 {[%emt 0:00:14]} 37. e5 {[%emt 0:00:13]} Rf8 {[%emt 0:00:37]} 38. g3 {[%emt 0:01:08]} Nc6 {[%emt 0:17:32]} 39. Bf3 {[%emt 0:00:06]} Na5 {[%emt 0:00:11]} 40. Bd5 {[%emt 0:00:08]} Rd8 {[%emt 0:00:08]} 41. Rb1 {[%emt 0:00:03] Weighted Error Value: White=0.06 (flawless) /Black=0.33.  Mistake:       	---       	Black=3      Inaccurate:     	White=1     	Black=3      OK:         	White=18    	Black=6      Best:        	White=2     	---} 1-0

[Event "Commonwealth CC-Open 2024"]
[Site "Malacca"]
[Date "2024.02.21"]
[Round "3.6"]
[White "Wong, Jianwen"]
[Black "Das, Sayantan"]
[Result "0-1"]
[ECO "A01"]
[WhiteElo "2254"]
[BlackElo "2514"]
[Annotator "RC"]
[PlyCount "66"]
[EventDate "2024.02.21"]
[EventCountry "MAS"]
[SourceTitle "playchess.com"]
[Source "ChessBase"]
[SourceQuality "1"]
[TimeControl "5400+30"]

1. b3 e5 2. Bb2 Nc6 3. Nf3 e4 4. Nd4 Nf6 5. e3 Nxd4 6. Bxd4 d5 7. c4 dxc4 8. Bxc4 Bd6 9. Nc3 Bf5 10. h3 O-O 11. g4 Bg6 12. h4 h6 13. g5 hxg5 14. hxg5 Nh7 15. Rxh7 Kxh7 16. Qg4 Rh8 17. O-O-O Kg8 18. Nxe4 b5 19. Bxb5 Ba3+ 20. Kc2 Qd5 21. Bd3 c5 22. Nc3 Bxd3+ 23. Kxd3 Qd6 24. Nb5 Qa6 25. Bc3 Qxb5+ 26. Kc2 Rd8 27. d3 Qd7 28. Qf4 c4 29. bxc4 Qa4+ 30. Kd2 Rxd3+ 31. Kxd3 Qxd1+ 32. Ke4 Bd6 33. Qf5 {[%emt 1:22:46]} Qc2+ {[%emt 1:35:57]} 0-1

[Event "Commonwealth CC-Open 2024"]
[Site "Malacca"]
[Date "2024.02.21"]
[Round "3.7"]
[White "Iniyan, Pa"]
[Black "Chitlange Sakshi"]
[Result "1-0"]
[ECO "E48"]
[WhiteElo "2515"]
[BlackElo "2210"]
[Annotator "RC"]
[PlyCount "99"]
[EventDate "2024.02.21"]
[EventCountry "MAS"]
[SourceTitle "playchess.com"]
[Source "ChessBase"]
[SourceQuality "1"]
[TimeControl "5400+30"]

1. d4 Nf6 2. c4 e6 3. Nc3 Bb4 4. e3 O-O 5. Bd3 c5 6. Nge2 cxd4 7. exd4 d5 8. cxd5 Nxd5 9. O-O Be7 10. Re1 Nc6 11. a3 Nxc3 12. bxc3 Bf6 13. Ng3 g6 14. Bh6 Re8 15. Qf3 Bg7 16. Bxg7 Kxg7 17. Rad1 Bd7 18. Ne4 Rf8 19. Qf4 Qe7 20. Qg3 b6 21. Nd6 Qf6 22. Re3 Kh8 23. Ne4 Qg7 24. Ng5 Rad8 25. Qh4 Kg8 26. Rh3 h6 27. Qxh6 Qxh6 28. Rxh6 Bc8 29. Re1 Kg7 30. Rh7+ Kg8 31. Rh4 Kg7 32. Re3 e5 33. Rh7+ Kg8 34. Bc4 exd4 35. Rxf7 dxe3 36. Rc7+ Rf7 37. Bxf7+ Kf8 38. fxe3 Ne5 39. Be6 Rd1+ 40. Kf2 Bxe6 41. Nxe6+ Ke8 42. Rxa7 Rd3 43. Rc7 Ng4+ 44. Kf3 Nxh2+ 45. Ke2 Rd6 46. Nd4 Ng4 47. Kf3 Ne5+ 48. Ke4 Ng4 49. Kf4 Nf6 {[%emt 1:55:00]} 50. Ke5 {[%emt 1:02:00]} 1-0

[Event "Commonwealth CC-Open 2024"]
[Site "Malacca"]
[Date "2024.02.21"]
[Round "3.8"]
[White "Vrashank Chouhan"]
[Black "Deepan Chakkravarthy J."]
[Result "0-1"]
[ECO "A80"]
[WhiteElo "2046"]
[BlackElo "2422"]
[Annotator "ChessBase"]
[PlyCount "58"]
[EventDate "2024.02.21"]
[EventCountry "MAS"]
[SourceTitle "playchess.com"]
[Source "ChessBase"]
[SourceQuality "1"]
[TimeControl "5400+30"]

1. d4 f5 2. Bg5 Nf6 3. Bxf6 exf6 4. e3 Nc6 5. Bd3 d5 6. c3 Bd6 7. Ne2 O-O 8. Qc2 Ne7 9. Nd2 Kh8 10. Nf1 b6 11. Nfg3 Qd7 12. b4 a5 13. b5 a4 14. O-O Ra5 15. Rab1 g6 16. f3 Bb7 17. e4 f4 18. Nh1 g5 19. c4 dxe4 20. fxe4 c5 21. bxc6 Nxc6 22. Nf2 g4 23. c5 bxc5 24. Nxg4 Nb4 25. Rxb4 cxb4 26. h3 Rg5 27. d5 h5 28. Nh6 Qxh3 29. Nxf4 {[%emt 1:31:22]} Qe3+ {[%emt 1:23:06]} 0-1

[Event "Commonwealth CC-Open 2024"]
[Site "Malacca"]
[Date "2024.02.21"]
[Round "3.9"]
[White "Anderson, Gavin"]
[Black "Rohith Krishna S"]
[Result "0-1"]
[ECO "E44"]
[WhiteElo "2159"]
[BlackElo "2410"]
[Annotator "ChessBase"]
[PlyCount "60"]
[EventDate "2024.02.21"]
[EventCountry "MAS"]
[SourceTitle "playchess.com"]
[Source "ChessBase"]
[SourceQuality "1"]
[TimeControl "5400+30"]

1. d4 Nf6 2. c4 e6 3. Nc3 Bb4 4. e3 O-O 5. Nge2 b6 6. a3 Be7 7. Ng3 Bb7 8. e4 d5 9. e5 Ne4 10. Ngxe4 dxe4 11. Be3 f6 12. exf6 Bxf6 13. Qd2 Qe8 14. Qc2 Qg6 15. Be2 Bg5 16. g3 Bxe3 17. fxe3 Nd7 18. O-O-O Rad8 19. Rdf1 Rxf1+ 20. Rxf1 Qh6 21. Bg4 c5 22. Rf4 e5 23. Rxe4 Bxe4 24. Qxe4 Nf6 25. Be6+ Kh8 26. Qxe5 cxd4 27. Nd1 dxe3 28. Nxe3 Re8 29. Kb1 Nd7 30. Nf5 {[%emt 1:42:37]} Nxe5 {[%emt 1:29:14]} 0-1

[Event "Commonwealth CC-Open 2024"]
[Site "Malacca"]
[Date "2024.02.21"]
[Round "3.10"]
[White "Nandhidhaa, P V"]
[Black "Novak, Attila Robert"]
[Result "0-1"]
[ECO "C00"]
[WhiteElo "2305"]
[BlackElo "2130"]
[Annotator "ChessBase"]
[PlyCount "92"]
[EventDate "2024.02.21"]
[EventCountry "MAS"]
[SourceTitle "playchess.com"]
[Source "ChessBase"]
[SourceQuality "1"]
[TimeControl "5400+30"]

1. e4 e6 2. d3 d5 3. Nd2 Nf6 4. g3 Be7 5. Bg2 c5 6. Ngf3 Nc6 7. O-O O-O 8. Re1 b5 9. e5 Nd7 10. Nf1 a5 11. h4 Ba6 12. h5 b4 13. N1h2 c4 14. h6 g6 15. Ng4 Rc8 16. Bf4 a4 17. d4 a3 18. b3 cxb3 19. cxb3 Na7 20. Qd2 Rc3 21. Bg5 Rd3 22. Bxe7 Qxe7 23. Qf4 Nb5 24. Bf1 Rc3 25. Nf6+ Nxf6 26. exf6 Qa7 27. Rad1 Rc2 28. Bxb5 Bxb5 29. Rd2 Rc3 30. Ng5 Qc7 31. Qxc7 Rxc7 32. f4 Rfc8 33. Kf2 Rc2 34. Red1 Bd3 35. Ke3 Bf5 36. Rxc2 Rxc2 37. Rd2 Rb2 38. Nf3 Bb1 39. Rd1 Bxa2 40. Nd2 Bxb3 41. Rc1 Bc2 42. Nf3 a2 43. Ne1 b3 44. Kd2 Rb1 45. Nxc2 Rxc1 46. Kxc1 {[%emt 1:53:30]} bxc2 {[%emt 1:04:55]} 0-1

[Event "Commonwealth CC-Open 2024"]
[Site "Malacca"]
[Date "2024.02.21"]
[Round "3.11"]
[White "Tin, Jingyao"]
[Black "Rindhiya V"]
[Result "1-0"]
[ECO "C97"]
[WhiteElo "2563"]
[BlackElo "1879"]
[Annotator "RC"]
[PlyCount "99"]
[EventDate "2024.02.21"]
[EventCountry "MAS"]
[SourceTitle "playchess.com"]
[Source "ChessBase"]
[SourceQuality "1"]
[TimeControl "5400+30"]

1. e4 e5 2. Nf3 Nc6 3. Bb5 a6 4. Ba4 Nf6 5. O-O Be7 6. Re1 b5 7. Bb3 d6 8. c3 O-O 9. h3 Na5 10. Bc2 c5 11. d4 Qc7 12. d5 Bd7 13. b3 Rfe8 14. Nbd2 Bf8 15. Nf1 g6 16. Kh2 Bg7 17. Be3 Reb8 18. Ng3 c4 19. b4 Nb7 20. a4 a5 21. axb5 Bxb5 22. Ba4 Qd7 23. Bxb5 Qxb5 24. Qa4 Qe8 25. Qc6 Qc8 26. Reb1 Ne8 27. Nd2 axb4 28. Ba7 bxc3 29. Bxb8 Rxb8 30. Nxc4 c2 31. Rb2 Nc5 32. Qxc8 Rxc8 33. Rxc2 Nb3 34. Ra4 Nd4 35. Rca2 f5 36. exf5 gxf5 37. Nb6 Rb8 38. Nd7 Rd8 39. Ra7 e4 40. Nh5 Bh8 41. Rb7 Kf7 42. Ne5+ Kg8 43. Nf7 Be5+ 44. Nxe5 dxe5 45. Re7 Nd6 46. Raa7 N4b5 47. Nf6+ Kf8 48. Nxh7+ Kg8 49. Rg7+ Kh8 {[%emt 1:54:11]} 50. Nf6 {[%emt 1:23:20]} 1-0

[Event "Commonwealth CC-Open 2024"]
[Site "Malacca"]
[Date "2024.02.21"]
[Round "3.12"]
[White "Smith, Robert W"]
[Black "Visakh N R"]
[Result "1/2-1/2"]
[ECO "C45"]
[WhiteElo "2152"]
[BlackElo "2549"]
[Annotator "RC"]
[PlyCount "144"]
[EventDate "2024.02.21"]
[EventCountry "MAS"]
[SourceTitle "playchess.com"]
[Source "ChessBase"]
[SourceQuality "1"]
[TimeControl "5400+30"]

1. e4 e5 2. Nf3 Nc6 3. d4 exd4 4. Nxd4 Nf6 5. Nxc6 bxc6 6. e5 Qe7 7. Qe2 Nd5 8. c4 Ba6 9. b3 g6 10. Bb2 Bg7 11. g3 O-O 12. Bg2 Rae8 13. O-O Nb6 14. Re1 d5 15. Nd2 Rb8 16. a4 Rfd8 17. Ba3 Qe8 18. a5 Nd7 19. f4 Bf8 20. Qe3 Bxa3 21. Rxa3 Qe7 22. Raa1 Nc5 23. f5 dxc4 24. e6 fxe6 25. fxg6 hxg6 26. bxc4 Rd3 27. Qh6 Qg7 28. Qxg7+ Kxg7 29. Ne4 Nxe4 30. Rxe4 Rd2 31. Rxe6 Bxc4 32. Re7+ Kh6 33. Bxc6 Rbb2 34. Rxc7 Rxh2 35. Be4 Bb5 36. Rb1 Rxb1+ 37. Kxh2 Rb2+ 38. Kg1 a6 39. Rb7 Re2 40. Bd5 Re5 41. Bg2 Re1+ 42. Kh2 Re2 43. Rb6 Ra2 44. Kg1 Rxa5 45. Be4 Be8 46. Kf2 Ra3 47. Re6 Bf7 48. Re7 Bc4 49. Rd7 Ra5 50. Rd6 Rg5 51. Bd3 Bxd3 52. Rxd3 a5 53. Rd6 a4 54. Ra6 Rg4 55. Kf3 Rb4 56. Ra5 g5 57. g4 Rb3+ 58. Ke4 Rb4+ 59. Kf3 Kg6 60. Ra6+ Kf7 61. Ra5 Kf6 62. Rf5+ Kg6 63. Ra5 Rb3+ 64. Ke4 Rb4+ 65. Kf3 Rb3+ 66. Ke4 a3 67. Ra6+ Kf7 68. Kf5 Rb5+ 69. Ke4 Rb4+ 70. Kf5 Rb5+ 71. Ke4 Rb3 72. Kf5 {[%emt 2:05:57]} Rb5+ {[%emt 1:40:22]} 1/2-1/2

[Event "Commonwealth CC-Open 2024"]
[Site "Malacca"]
[Date "2024.02.21"]
[Round "3.13"]
[White "Mohammad Nubairshah Shaikh"]
[Black "Muhammed, Shuaau"]
[Result "1-0"]
[ECO "A07"]
[WhiteElo "2428"]
[BlackElo "2093"]
[Annotator "RC"]
[PlyCount "65"]
[EventDate "2024.02.21"]
[EventCountry "MAS"]
[SourceTitle "playchess.com"]
[Source "ChessBase"]
[SourceQuality "1"]
[TimeControl "5400+30"]

1. Nf3 Nf6 2. g3 d5 3. Bg2 e6 4. O-O b5 5. b3 Bb7 6. c4 c6 7. Bb2 Nbd7 8. d3 Be7 9. e4 dxe4 10. dxe4 bxc4 11. e5 Nd5 12. bxc4 N5b6 13. Nbd2 O-O 14. Qc2 Nc5 15. Bd4 Qc7 16. Rfd1 Rfd8 17. Nf1 a5 18. Rab1 Ba6 19. Ne3 Rab8 20. h4 Nbd7 21. Bc3 a4 22. Rbc1 Bf8 23. Ng5 g6 24. f4 a3 25. Kh1 Nb6 26. Rxd8 Qxd8 27. Rd1 Qc8 28. Bb4 h6 29. Nxf7 Kxf7 30. h5 gxh5 31. Qh7+ Bg7 32. Bxc5 Nxc4 {[%emt 1:16:14]} 33. Be4 {[%emt 1:47:00]} 1-0

[Event "Commonwealth CC-Open 2024"]
[Site "Malacca"]
[Date "2024.02.21"]
[Round "3.14"]
[White "Wong, Zhenyong Jayden"]
[Black "Bhagyashree Patil"]
[Result "1-0"]
[ECO "E63"]
[WhiteElo "2406"]
[BlackElo "1885"]
[Annotator "ChessBase"]
[PlyCount "103"]
[EventDate "2024.02.21"]
[EventCountry "MAS"]
[SourceTitle "playchess.com"]
[Source "ChessBase"]
[SourceQuality "1"]
[TimeControl "5400+30"]

1. d4 Nf6 2. c4 g6 3. g3 Bg7 4. Bg2 d6 5. Nc3 O-O 6. Nf3 a6 7. O-O Nc6 8. b3 Rb8 9. d5 Na5 10. Bg5 c5 11. dxc6 Nxc6 12. Rc1 Bd7 13. Nd5 Nxd5 14. cxd5 Ne5 15. Qd2 Nxf3+ 16. exf3 Re8 17. Rfe1 a5 18. h4 b5 19. Re4 Bf5 20. Re2 Rb7 21. Be3 b4 22. Bd4 Bxd4 23. Qxd4 Qb6 24. Qf4 Rc7 25. Rd1 Qb5 26. Red2 Qc5 27. h5 Qc3 28. Bf1 Qf6 29. Re1 g5 30. Qe3 h6 31. Bc4 Qc3 32. Qxc3 bxc3 33. Rde2 c2 34. Rc1 Rb8 35. Kg2 a4 36. g4 Bh7 37. Kg3 a3 38. f4 gxf4+ 39. Kxf4 Kf8 40. Ke3 Rxc4 41. bxc4 Rb2 42. f4 e6 43. dxe6 fxe6 44. f5 exf5 45. gxf5 Rxa2 46. Rexc2 Rb2 47. Rxb2 axb2 48. Rb1 Bxf5 49. Rxb2 Bg4 50. Rb7 Bxh5 51. Rd7 Bf7 {[%emt 1:52:20]} 52. Kd4 {[%emt 1:41:59]} 1-0

[Event "Commonwealth CC-Open 2024"]
[Site "Malacca"]
[Date "2024.02.21"]
[Round "3.16"]
[White "Kapoor, Satvik"]
[Black "Srija, Seshadri"]
[Result "1/2-1/2"]
[ECO "D02"]
[WhiteElo "1791"]
[BlackElo "2291"]
[Annotator "ChessBase"]
[PlyCount "87"]
[EventDate "2024.02.21"]
[EventCountry "MAS"]
[SourceTitle "playchess.com"]
[Source "ChessBase"]
[SourceQuality "1"]
[TimeControl "5400+30"]

1. Nf3 d5 2. g3 Nf6 3. Bg2 e6 4. d4 Bd6 5. O-O O-O 6. Nbd2 h6 7. c4 Nc6 8. a3 a5 9. Qc2 Re8 10. e4 dxe4 11. Nxe4 Nxe4 12. Qxe4 e5 13. dxe5 Nxe5 14. Nxe5 Bxe5 15. Re1 Bd7 16. Qxb7 Qf6 17. Qd5 Rad8 18. Qxa5 Bd4 19. Rxe8+ Rxe8 20. Be3 Bxe3 21. fxe3 Qxb2 22. Re1 Re6 23. Qa8+ Kh7 24. Be4+ g6 25. Rf1 Rf6 26. Bg2 Kg7 27. Rxf6 Qxf6 28. Qd5 Be6 29. Qd4 Qxd4 30. exd4 Bxc4 31. a4 Kf6 32. Bb7 Ke6 33. a5 Kd6 34. a6 Bxa6 35. Bxa6 Kd5 36. Kf2 Kxd4 37. Bb5 f5 38. Bd7 c5 39. h4 Ke4 40. Bc6+ Kd4 41. Ke2 g5 42. hxg5 hxg5 43. Kd2 f4 {[%emt 1:32:53]} 44. gxf4 {[%emt 1:21:19]} 1/2-1/2

[Event "Commonwealth CC-Open 2024"]
[Site "Malacca"]
[Date "2024.02.21"]
[Round "3.17"]
[White "Liu, Yi"]
[Black "Masli, Muhd Nur Daie"]
[Result "1-0"]
[ECO "D02"]
[WhiteElo "2260"]
[BlackElo "1867"]
[Annotator "ChessBase"]
[PlyCount "31"]
[EventDate "2024.02.21"]
[EventCountry "MAS"]
[SourceTitle "playchess.com"]
[Source "ChessBase"]
[SourceQuality "1"]
[TimeControl "5400+30"]

1. d4 Nf6 2. Nf3 e6 3. Bf4 b6 4. e3 Bb7 5. Nbd2 Be7 6. h3 O-O 7. Bd3 c5 8. c3 Nc6 9. O-O d5 10. Ne5 Bd6 11. Bg3 Ne7 12. Qe2 a5 13. a4 Ng6 14. Rad1 Qe7 15. e4 cxd4 {[%emt 0:27:27]} 16. Nxg6 {[%emt 0:19:53]} 1-0

[Event "Commonwealth CC-Open 2024"]
[Site "Malacca"]
[Date "2024.02.21"]
[Round "3.18"]
[White "Swapnil, S. Dhopade"]
[Black "Hiew, Jing Yung"]
[Result "1-0"]
[ECO "D78"]
[WhiteElo "2454"]
[BlackElo "1635"]
[Annotator "RC"]
[PlyCount "81"]
[EventDate "2024.02.21"]
[EventCountry "MAS"]
[SourceTitle "playchess.com"]
[Source "ChessBase"]
[SourceQuality "1"]
[TimeControl "5400+30"]

1. Nf3 d5 2. g3 g6 3. Bg2 Bg7 4. d4 c6 5. O-O Nf6 6. Nbd2 O-O 7. c4 Bf5 8. b3 Nbd7 9. Bb2 a5 10. a4 Ne4 11. Nh4 Nxd2 12. Qxd2 Be6 13. Rfc1 Qb6 14. e3 dxc4 15. bxc4 Nc5 16. Ba3 Nb3 17. Qb2 Ra6 18. Rab1 Nxc1 19. Qxb6 Rxb6 20. Rxb6 Ne2+ 21. Kh1 Bxc4 22. Rxb7 Nc3 23. Bxe7 Rc8 24. Bd6 Bf8 25. Bxf8 Kxf8 26. Ra7 Nxa4 27. Rxa5 Nb6 28. Nf3 Nd7 29. Ra7 Rd8 30. Rc7 Bb5 31. Ng5 h6 32. Ne4 Ke7 33. Ra7 Rb8 34. Nc5 Rd8 35. Bh3 f5 36. g4 Be2 37. gxf5 Bf3+ 38. Bg2 Bxg2+ 39. Kxg2 gxf5 40. Kh3 Ke8 {[%emt 1:50:30]} 41. Rxd7 {[%emt 1:51:00]} 1-0

[Event "Commonwealth CC-Open 2024"]
[Site "Malacca"]
[Date "2024.02.21"]
[Round "3.21"]
[White "Nguyen, Thu Giang"]
[Black "De Maupeou D`ableiges, Alexandre"]
[Result "1-0"]
[ECO "C63"]
[WhiteElo "2072"]
[BlackElo "1609"]
[Annotator "NA"]
[PlyCount "71"]
[EventDate "2024.02.21"]
[EventCountry "MAS"]
[SourceTitle "playchess.com"]
[Source "ChessBase"]
[SourceQuality "1"]
[TimeControl "5400+30"]

1. e4 e5 2. Nf3 Nc6 3. Bb5 f5 4. d4 fxe4 5. Nxe5 Nxe5 6. dxe5 c6 7. Bc4 Qa5+ 8. Nc3 Qxe5 9. O-O d5 10. f4 Bc5+ 11. Kh1 Qe7 12. Bxd5 cxd5 13. Nxd5 Qd6 14. b4 Bxb4 15. Nxb4 Qxb4 16. Qh5+ Kf8 17. Be3 Nf6 18. Bc5+ Kg8 19. Qe5 Qc4 20. Rfd1 Bd7 21. Rd4 Qe6 22. Rd6 Qe8 23. Rad1 Bc6 24. Qg5 Qh5 25. Qg3 Qxc5 26. Rxf6 h6 27. Rg6 Qe7 28. Rdd6 Kf8 29. f5 Rh7 30. f6 Qf7 31. fxg7+ Kg8 32. Rdf6 Qd5 33. h3 Re8 34. Qf4 Qd1+ 35. Kh2 Qd7 {[%emt 1:46:33]} 36. Rf8+ {[%emt 1:43:52]} 1-0

[Event "Commonwealth CC-Open 2024"]
[Site "Malacca"]
[Date "2024.02.21"]
[Round "3.23"]
[White "Ismadi, Muhd Eilfie"]
[Black "Khandhar, Kaushal"]
[Result "0-1"]
[ECO "A51"]
[WhiteElo "1500"]
[BlackElo "1840"]
[Annotator "NA"]
[PlyCount "104"]
[EventDate "2024.02.21"]
[EventCountry "MAS"]
[SourceTitle "playchess.com"]
[Source "ChessBase"]
[SourceQuality "1"]
[TimeControl "5400+30"]

1. e4 e6 2. d4 d5 3. exd5 exd5 4. c4 Nf6 5. Nf3 Bb4+ 6. Bd2 Bxd2+ 7. Nbxd2 O-O 8. Be2 dxc4 9. Nxc4 c6 10. O-O Be6 11. Nfe5 Nbd7 12. Bf3 Nxe5 13. Nxe5 Qb6 14. Qd2 Rad8 15. Rfd1 Rd6 16. Be2 Rfd8 17. Nf3 a5 18. h3 h6 19. Qc2 Bd5 20. Ne5 Be6 21. Nf3 Nd5 22. b3 Nf4 23. Bc4 Bd5 24. Bxd5 Rxd5 25. Re1 Ne6 26. Re2 Qc7 27. Rae1 Qf4 28. Re4 Qf6 29. a3 g6 30. Qc3 Kg7 31. a4 R8d6 32. Qd2 c5 33. Qxa5 cxd4 34. Qb4 b6 35. Re5 Rc5 36. R5e4 d3 37. Rd1 Ng5 38. Rf4 Qe7 39. Nd4 Qe5 40. Nb5 Rd8 41. h4 Ne6 42. Re4 Qh5 43. Ree1 Qd5 44. Re4 d2 45. Nc3 Qd3 46. Re3 Qc2 47. Kf1 Rd4 48. Qa3 Rxc3 49. Qa1 Rdd3 50. Rxd3 Qxd3+ 51. Kg1 Nd4 52. Qb2 {[%emt 1:56:30]} Rc1 {[%emt 1:39:03]} 0-1

[Event "Commonwealth CC-Open 2024"]
[Site "Malacca"]
[Date "2024.02.21"]
[Round "3.24"]
[White "Fadzil, Muhd Idraki"]
[Black "Sabri, Mohd Saprin"]
[Result "0-1"]
[ECO "B43"]
[WhiteElo "1524"]
[BlackElo "1922"]
[Annotator "NA"]
[PlyCount "94"]
[EventDate "2024.02.21"]
[EventCountry "MAS"]
[SourceTitle "playchess.com"]
[Source "ChessBase"]
[SourceQuality "1"]
[TimeControl "5400+30"]

1. e4 c5 2. Nf3 e6 3. Nc3 a6 4. d4 cxd4 5. Nxd4 b5 6. Bd3 Bb7 7. O-O Qc7 8. a3 Nf6 9. Re1 d6 10. Bg5 Nbd7 11. Nb3 Be7 12. f4 h6 13. Bh4 Rg8 14. f5 g5 15. Bf2 e5 16. a4 b4 17. Na2 d5 18. c3 dxe4 19. Bf1 a5 20. cxb4 axb4 21. Rc1 Qd6 22. Bb5 Bd5 23. Bc5 Bxb3 24. Qxb3 Qxc5+ 25. Rxc5 Bxc5+ 26. Kf1 Kf8 27. Bxd7 Nxd7 28. Qd5 Rd8 29. Rc1 Be7 30. Qxe4 Nc5 31. Qc6 Rd6 32. Qb5 Nd3 33. Rc8+ Kg7 34. Rxg8+ Kxg8 35. Nxb4 Nxb4 36. Qe8+ Bf8 37. Qxe5 Rd1+ 38. Ke2 Re1+ 39. Kxe1 Nd3+ 40. Kd2 Nxe5 41. Kc3 Nc6 42. Kc4 Kg7 43. Kd5 Nb4+ 44. Kc4 h5 45. a5 Kf6 46. Kb5 Kxf5 47. a6 {[%emt 1:54:00]} Nxa6 {[%emt 1:19:50]} 0-1

[Event "Commonwealth CC-Open 2024"]
[Site "Malacca"]
[Date "2024.02.21"]
[Round "3.25"]
[White "Milligan, Helen"]
[Black "Tham, Tick Hong Jax"]
[Result "1-0"]
[ECO "C40"]
[WhiteElo "1941"]
[BlackElo "1589"]
[Annotator "NA"]
[PlyCount "123"]
[EventDate "2024.02.21"]
[EventCountry "MAS"]
[SourceTitle "playchess.com"]
[Source "ChessBase"]
[SourceQuality "1"]
[TimeControl "5400+30"]

1. e4 e5 2. Nf3 d5 3. exd5 e4 4. Qe2 Nf6 5. d3 Qxd5 6. dxe4 Qxe4 7. Nbd2 Qxe2+ 8. Bxe2 Bf5 9. Nd4 Bd7 10. Bf3 Nc6 11. Nxc6 Bxc6 12. Bxc6+ bxc6 13. O-O O-O-O 14. Nf3 Bd6 15. Bg5 h6 16. Bxf6 gxf6 17. c3 Kb7 18. Rfe1 Rhe8 19. Rxe8 Rxe8 20. Kf1 c5 21. g3 Kc6 22. Rd1 f5 23. c4 f4 24. Rd5 fxg3 25. hxg3 f6 26. Rf5 Re6 27. b3 Kb6 28. Ne1 Kc6 29. Nd3 a5 30. Rh5 Bf8 31. Nf4 Re5 32. Kg2 Kd6 33. Kf3 Rxh5 34. Nxh5 Ke5 35. Ke3 Kf5 36. f3 Kg5 37. Nf4 Bd6 38. Nh3+ Kg6 39. g4 f5 40. Nf4+ Kg5 41. Ne6+ Kf6 42. Nd8 Kg5 43. gxf5 Kxf5 44. Nb7 h5 45. Nxa5 h4 46. Kf2 h3 47. Nc6 Bf4 48. a4 Ke6 49. b4 cxb4 50. Nxb4 Kd6 51. Nd3 Bh2 52. f4 Kc6 53. Kf3 Bxf4 54. Nxf4 h2 55. Kg2 Kb6 56. Nd5+ Kc5 57. a5 c6 58. a6 cxd5 59. a7 dxc4 60. a8=Q c3 61. Qa3+ Kd4 {[%emt 1:38:27]} 62. Qc1 {[%emt 1:47:51]} 1-0

[Event "Commonwealth CC-Open 2024"]
[Site "Malacca"]
[Date "2024.02.21"]
[Round "3.26"]
[White "Lim, Kian Hwa"]
[Black "Sammut Briffa, Peter"]
[Result "1/2-1/2"]
[ECO "B24"]
[WhiteElo "1492"]
[BlackElo "1892"]
[Annotator "NA"]
[PlyCount "111"]
[EventDate "2024.02.21"]
[EventCountry "MAS"]
[SourceTitle "playchess.com"]
[Source "ChessBase"]
[SourceQuality "1"]
[TimeControl "5400+30"]

1. e4 c5 2. Nc3 Nc6 3. g3 g6 4. Bg2 Bg7 5. d3 e6 6. Be3 Nd4 7. Qd2 Ne7 8. Nd1 b6 9. c3 Ndc6 10. Bh6 O-O 11. Bxg7 Kxg7 12. Ne3 f5 13. Ne2 Bb7 14. f4 d5 15. exd5 Nxd5 16. O-O Qd7 17. Rfe1 Rfe8 18. d4 Nxe3 19. Qxe3 cxd4 20. cxd4 Rac8 21. a3 Na5 22. Bxb7 Qxb7 23. Nc3 Nc4 24. Qe2 Qc6 25. Rac1 Qd7 26. Red1 Qb7 27. Nb5 Qd5 28. Nxa7 Rc7 29. b3 Rxa7 30. bxc4 Qd7 31. Qb2 Kf7 32. c5 bxc5 33. dxc5 Qc6 34. Qb6 Rc7 35. a4 Rec8 36. a5 Qxb6 37. axb6 Rxc5 38. Rxc5 Rxc5 39. b7 Rb5 40. Rd7+ Kf6 41. Rxh7 e5 42. fxe5+ Kxe5 43. Rg7 Kf6 44. Rc7 Kg5 45. Kg2 Rb3 46. Rg7 Kf6 47. Rh7 Kg5 48. Rc7 f4 49. Rc5+ Kf6 50. gxf4 Rxb7 51. Kg3 Rh7 52. h4 Ra7 53. Kg4 Ra1 54. h5 Rg1+ 55. Kf3 gxh5 {[%emt 1:58:00]} 56. Rxh5 {[%emt 0:46:16]} 1/2-1/2